bitfinex/quotes_ETHUSD_20210701
["timestamp","ask_amount","ask_price","bid_price","bid_amount"]
[1625182406492,7.0862,2116.5,2116.1,0.15755624]
[1625182406593,11.6685,2116.5,2116.1,0.15755624]
[1625182407260,4.5823,2116.5,2116.1,0.15755624]
[1625182407661,8.78812,2116.7,2116.1,0.15755624]
[1625182407966,6.7125,2116.7,2116.1,0.15755624]
[1625182408062,1.7025,2116.7,2116.1,0.15755624]
[1625182408169,6.7125,2116.7,2116.1,0.15755624]
[1625182408364,1.7025,2116.7,2116.1,0.15755624]
[1625182408464,6.7125,2116.7,2116.1,0.15755624]
[1625182408565,1.7025,2116.7,2116.1,0.15755624]
[1625182408712,6.7125,2116.7,2116.1,0.15755624]
[1625182408815,7.08628,2116.5,2116.1,0.15755624]
[1625182408964,0.06,2116.4,2116.1,0.15755624]
[1625182409303,15.85118,2116.5,2116.1,0.15755624]
[1625182409593,3.7549,2116.5,2116.1,0.15755624]
[1625182409994,3.86757052,2116.5,2116.1,0.15755624]
[1625182410143,0.11267052,2116.5,2116.1,0.15755624]
[1625182410692,7.08524,2116.7,2116.1,0.15755624]
[1625182410844,7.08524,2116.7,2116.2,23.2]
[1625182410944,9.45617972,2116.9,2116.1,2.78587186]
[1625182411041,14.46617972,2116.9,2116.1,2.78587186]
[1625182411525,9.45617972,2116.9,2116.1,2.78587186]
[1625182412574,0.00884972,2116.9,2116.1,2.78587186]
[1625182412673,5.01884972,2116.9,2116.1,2.78587186]
[1625182412922,0.00884972,2116.9,2116.1,2.78587186]
[1625182413023,5.01884972,2116.9,2116.1,2.78587186]
[1625182413124,0.00884972,2116.9,2116.1,2.78587186]
[1625182413222,5.01884972,2116.9,2116.1,2.78587186]
[1625182413322,0.00884972,2116.9,2116.1,2.78587186]
[1625182414212,0.00884972,2116.9,2116.1,7.79587186]
[1625182414316,0.00884972,2116.9,2116.1,15.79587186]
[1625182414417,7.08508,2116.7,2116.1,15.79587186]
[1625182417921,7.08508,2116.7,2116.1,2.78587186]
[1625182418299,3.2129,2116.7,2116.1,0.30755624]
[1625182418395,8.2229,2116.7,2116.1,0.15755624]
[1625182418545,0.1,2116.6,2116.1,0.15755624]
[1625182418740,0.08,2116.5,2116.1,0.15755624]
[1625182419142,0.08,2116.5,2116.1,0.10755624]
[1625182419691,1.05,2116.6,2116.1,0.10755624]
[1625182419941,7.08685,2116.4,2116.1,0.10755624]
[1625182421676,9.44914,2116.5,2116.1,0.10755624]
[1625182421778,1.05,2116.6,2116.1,0.10755624]
[1625182422478,7.08606,2116.5,2116.1,0.10755624]
[1625182422988,0.12,2116.4,2116.1,0.10755624]
[1625182424035,7.08686,2116.3,2116.1,0.10755624]
[1625182424317,16.79,2116.2,2116.1,0.10755624]
[1625182424420,21.4763,2116.2,2116.1,0.10755624]
[1625182424565,26.4863,2116.2,2116.1,0.10755624]
[1625182425256,9.8363,2116.2,2116.1,0.10755624]
[1625182426662,5.15,2116.2,2116.1,0.10755624]
[1625182426912,7.08686,2116.3,2116.1,0.10755624]
[1625182427309,5.01,2116.6,2116.1,0.10755624]
[1625182427458,31.3404,2116.7,2116.1,0.10755624]
[1625182427560,36.3504,2116.7,2116.1,0.10755624]
[1625182427661,7.08676,2116.5,2116.1,0.10755624]
[1625182427861,0.14,2116.4,2116.1,0.10755624]
[1625182428258,7.08676,2116.5,2116.1,0.10755624]
[1625182428960,7.08745,2116.3,2116.1,0.10755624]
[1625182429410,12.09745,2116.3,2116.1,0.10755624]
[1625182429701,0.06,2116.2,2116.1,0.10755624]
[1625182431403,5.1097,2116.2,2116.1,0.10755624]
[1625182431604,10.1197,2116.2,2116.1,0.10755624]
[1625182432855,19.57061,2116.2,2116.1,0.10755624]
[1625182433160,19.51061,2116.2,2116.1,0.10755624]
[1625182434253,14.50061,2116.2,2116.1,0.10755624]
[1625182434354,19.51061,2116.2,2116.1,0.10755624]
[1625182434454,14.50061,2116.2,2116.1,0.10755624]
[1625182434555,19.51061,2116.2,2116.1,0.10755624]
[1625182434755,19.55061,2116.2,2116.1,0.10755624]
[1625182436417,14.50061,2116.2,2116.1,0.10755624]
[1625182437523,19.51061,2116.2,2116.1,0.10755624]
[1625182437873,5.0497,2116.2,2116.1,0.10755624]
[1625182438074,9.451,2116.4,2116.1,0.10755624]
[1625182438578,7.08676,2116.2,2116.1,0.10755624]
[1625182439607,9.451,2116.4,2116.1,0.10755624]
[1625182439805,7.08615,2116.5,2116.1,0.10755624]
[1625182441540,7.08615,2116.5,2116.1,4.90815624]
[1625182441651,0.00884972,2116.9,2116.2,0.15]
[1625182441750,0.00884972,2116.9,2116.2,0.27]
[1625182441851,0.00884972,2116.9,2116.2,0.29072306]
[1625182441947,0.00884972,2116.9,2116.2,2.6478971]
[1625182442041,0.00884972,2116.9,2116.2,7.6578971]
[1625182442197,0.00884972,2116.9,2116.2,7.5378971]
[1625182442290,0.00884972,2116.9,2116.3,2.48259062]
[1625182442395,0.00884972,2116.9,2116.4,3.54157]
[1625182442498,0.00884972,2116.9,2116.6,11.78116]
[1625182442653,0.00884972,2116.9,2116.7,0.15]
[1625182444284,0.00884972,2116.9,2116.7,2.50717404]
[1625182444385,0.00884972,2116.9,2116.7,14.60015404]
[1625182444540,0.00884972,2116.9,2116.7,9.99608716]
[1625182444786,0.00884972,2116.9,2116.7,7.63891312]
[1625182444884,0.00884972,2116.9,2116.7,5.16]
[1625182444986,0.00884972,2116.9,2116.7,0.15]
[1625182445083,0.00884972,2116.9,2116.7,5.16]
[1625182445383,0.00884972,2116.9,2116.7,0.15]
[1625182445888,0.00884972,2116.9,2116.8,13.28]
[1625182446088,0.00884972,2116.9,2116.8,8.23]
[1625182446189,0.00884972,2116.9,2116.8,0.23]
[1625182446337,0.00884972,2116.9,2116.8,0.15]
[1625182446990,0.00884972,2116.9,2116.8,4.3294]
[1625182447190,0.00884972,2116.9,2116.8,9.3394]
[1625182447491,0.00884972,2116.9,2116.8,9.3794]
[1625182447634,0.00884972,2116.9,2116.8,4.3694]
[1625182448933,0.00884972,2116.9,2116.8,4.3294]
[1625182451007,0.00884972,2116.9,2116.8,9.3394]
[1625182451260,0.00884972,2116.9,2116.8,4.3294]
[1625182452544,0.00884972,2116.9,2116.7,1.296]
[1625182452646,0.00884972,2116.9,2116.2,0.15]
[1625182452743,0.00884972,2116.9,2116.1,0.10755624]
[1625182452843,4.41364972,2116.9,2116.1,0.10755624]
[1625182453045,9.42364972,2116.9,2116.1,0.10755624]
[1625182453792,9.32364972,2116.9,2116.1,0.10755624]
[1625182454044,7.08617,2116.6,2116.1,0.10755624]
[1625182454630,1.1379,2116.7,2116.1,0.10755624]
[1625182455426,7.08617,2116.6,2116.1,0.10755624]
[1625182455729,1.1379,2116.7,2116.1,0.10755624]
[1625182455831,5.01,2116.9,2116.1,0.10755624]
[1625182456030,14.45736,2117.0,2116.1,0.10755624]
[1625182456528,0.11266749,2116.6,2116.1,0.10755624]
[1625182456970,0.11266749,2116.6,2116.2,0.15]
[1625182457166,0.11266749,2116.6,2116.2,0.21]
[1625182457417,0.11266749,2116.6,2116.2,5.25083716]
[1625182457523,0.11266749,2116.6,2116.2,18.26083716]
[1625182457620,25.7484,2117.3,2116.4,15.4]
[1625182457720,5.01,2117.3,2116.4,23.4]
[1625182457873,12.09389,2117.3,2116.6,7.08364]
[1625182458025,10.79011962,2117.4,2116.6,4.3122]
[1625182458123,10.79011962,2117.4,2116.7,0.15]
[1625182458319,0.00811962,2117.4,2116.7,0.15]
[1625182458427,0.00811962,2117.4,2116.7,3.6914961]
[1625182458521,0.00811962,2117.4,2116.8,0.08]
[1625182458622,0.00811962,2117.4,2116.8,8.08]
[1625182458770,0.00811962,2117.4,2116.9,0.15]
[1625182458929,0.00811962,2117.4,2116.9,8.15]
[1625182459023,0.00811962,2117.4,2117.0,0.1]
[1625182459172,0.00811962,2117.4,2117.1,0.15]
[1625182459323,0.00811962,2117.4,2117.1,3.6323]
[1625182459874,0.00811962,2117.4,2117.1,8.6423]
[1625182460023,0.00811962,2117.4,2117.1,3.6323]
[1625182460374,0.00811962,2117.4,2117.1,10.71349]
[1625182460878,0.00811962,2117.4,2117.1,3.6323]
[1625182461510,0.00811962,2117.4,2117.1,15.72359]
[1625182461610,0.00811962,2117.4,2117.1,27.2637773]
[1625182461711,0.00811962,2117.4,2117.2,5.15417074]
[1625182461909,0.00811962,2117.4,2117.3,14.1]
[1625182462162,0.00811962,2117.4,2117.3,0.15]
[1625182462258,0.00811962,2117.4,2117.3,5.16]
[1625182462459,0.00811962,2117.4,2117.3,0.15]
[1625182462662,0.00811962,2117.4,2117.3,0.19]
[1625182463265,0.00811962,2117.4,2117.3,0.15]
[1625182468873,0.00811962,2117.4,2117.2,5.05417074]
[1625182469075,0.00811962,2117.4,2117.2,2.42109071]
[1625182469358,0.00811962,2117.4,2117.0,8.0]
[1625182469451,0.00811962,2117.4,2117.0,13.01]
[1625182470799,0.00811962,2117.4,2116.9,7.08244]
[1625182470897,0.00811962,2117.4,2116.9,20.09244]
[1625182475140,0.00811962,2117.4,2116.9,13.01]
[1625182475245,7.09175962,2117.4,2116.8,3.540892]
[1625182475344,7.09175962,2117.4,2116.7,10.1097]
[1625182475500,0.1437271,2117.3,2116.5,9.44135]
[1625182475597,0.1437271,2117.3,2116.4,8.59801678]
[1625182475895,0.06,2117.2,2116.4,12.13999678]
[1625182475996,3.33912297,2117.2,2116.4,5.05607638]
[1625182476242,8.34912297,2117.2,2116.4,5.05607638]
[1625182476394,7.08522,2116.9,2116.4,5.05607638]
[1625182476496,7.08522,2116.9,2116.4,2.42994043]
[1625182476595,0.18,2116.8,2116.4,0.00884972]
[1625182476693,0.18,2116.8,2116.1,3.20162596]
[1625182476794,7.1038355,2116.9,2116.1,3.20162596]
[1625182477054,7.11268522,2116.9,2116.1,3.20162596]
[1625182480104,0.02746522,2116.9,2116.1,3.20162596]
[1625182480203,0.00884972,2116.9,2116.1,8.21162596]
[1625182480304,0.00884972,2116.9,2116.1,13.2430112]
[1625182480406,0.00884972,2116.9,2116.1,21.2430112]
[1625182480706,0.00884972,2116.9,2116.1,18.04138524]
[1625182481156,0.00884972,2116.9,2116.4,7.0842]
[1625182481258,0.00884972,2116.9,2116.2,9.4456]
[1625182481464,0.00884972,2116.9,2116.5,0.14]
[1625182481472,0.00884972,2116.9,2116.5,3.4228]
[1625182481571,0.00884972,2116.9,2116.5,10.71389071]
[1625182481670,0.00884972,2116.9,2116.5,18.86389071]
[1625182481772,0.00884972,2116.9,2116.5,20.99899071]
[1625182482026,10.27251962,2117.4,2116.7,12.4]
[1625182482177,10.27251962,2117.4,2116.6,6.15151673]
[1625182482272,10.27251962,2117.4,2116.7,7.08257]
[1625182482374,10.27251962,2117.4,2116.6,20.60493673]
[1625182482476,10.27251962,2117.4,2116.6,17.9946422]
[1625182482576,10.27251962,2117.4,2116.6,3.5412222]
[1625182482677,15.12371962,2117.4,2116.3,5.01]
[1625182482776,0.15,2117.3,2115.9,15.88404703]
[1625182482928,0.35,2117.3,2116.1,5.01]
[1625182483030,0.35,2117.3,2116.0,14.4547162]
[1625182483177,0.06,2117.2,2116.0,14.4547162]
[1625182483380,7.08564,2116.7,2116.0,23.9012262]
[1625182483476,10.74744,2116.7,2116.0,5.01]
[1625182483576,10.74744,2116.7,2116.0,8.0]
[1625182483711,10.74744,2116.7,2115.9,15.59538436]
[1625182483712,10.74744,2116.7,2115.9,13.01978436]
[1625182483804,10.74744,2116.7,2115.9,5.01978436]
[1625182484006,10.74744,2116.7,2115.9,8.00978436]
[1625182484104,10.74744,2116.7,2115.9,13.01978436]
[1625182485068,10.74744,2116.7,2115.9,5.01978436]
[1625182485266,10.74744,2116.7,2115.9,0.00978436]
[1625182485415,10.74744,2116.7,2115.9,5.01978436]
[1625182485515,10.74744,2116.7,2115.9,0.00978436]
[1625182485615,10.74744,2116.7,2115.9,5.01978436]
[1625182485818,10.74744,2116.7,2115.9,0.00978436]
[1625182486018,10.74744,2116.7,2115.9,5.01978436]
[1625182486103,15.75744,2116.7,2115.9,0.00978436]
[1625182486255,0.27,2116.6,2115.9,0.00978436]
[1625182486453,0.2,2116.5,2115.9,0.00978436]
[1625182486653,0.15,2116.4,2115.9,0.00978436]
[1625182486857,7.08764,2116.2,2115.9,0.00978436]
[1625182486957,10.41664,2116.2,2115.9,0.00978436]
[1625182487054,10.56664,2116.2,2115.9,0.00978436]
[1625182491215,3.479,2116.2,2115.9,0.00978436]
[1625182493413,10.56664,2116.2,2115.9,0.00978436]
[1625182493616,0.12,2116.1,2115.9,0.00978436]
[1625182494263,10.41664,2116.2,2115.9,0.00978436]
[1625182496107,4.2106,2116.3,2115.9,0.00978436]
[1625182496207,3.0303,2116.3,2115.9,0.00978436]
[1625182496308,0.15,2116.3,2115.9,0.00978436]
[1625182496409,7.08764,2116.2,2115.9,0.00978436]
[1625182496607,10.60624,2116.2,2115.9,0.00978436]
[1625182505259,9.44936,2116.5,2115.9,0.00978436]
[1625182505364,31.8311,2116.7,2115.9,0.00978436]
[1625182505460,31.8311,2116.7,2115.9,2.61860689]
[1625182505461,21.0547,2116.7,2115.9,2.61860689]
[1625182505559,21.0547,2116.7,2115.9,2.63625945]
[1625182505657,21.0547,2116.7,2116.0,2.42109071]
[1625182505759,21.0547,2116.7,2116.0,2.43071242]
[1625182505760,10.2559,2116.7,2116.0,2.43071242]
[1625182505854,10.2559,2116.7,2116.0,6.12305242]
[1625182506005,10.2559,2116.7,2116.0,20.27428755]
[1625182506106,10.2559,2116.7,2116.1,3.9176]
[1625182506328,10.2559,2116.7,2116.4,7.08423]
[1625182506623,39.52015,2117.2,2116.4,7.08423]
[1625182506777,17.81975,2117.2,2116.4,7.09512951]
[1625182506974,17.81975,2117.2,2116.4,0.01089951]
[1625182507074,17.81975,2117.2,2116.3,0.15]
[1625182507075,17.81975,2117.2,2116.2,0.01551535]
[1625182507175,0.08,2117.1,2116.0,14.60655]
[1625182507323,0.08,2117.1,2116.1,5.01]
[1625182507425,7.08609,2116.6,2116.0,5.16]
[1625182507523,7.08609,2116.6,2116.0,0.15]
[1625182509049,9.44812,2116.9,2116.0,7.2356]
[1625182509147,15.7455,2117.2,2116.0,15.82657665]
[1625182509246,15.7455,2117.2,2116.0,20.83657665]
[1625182509545,0.03341024,2116.6,2116.0,28.83657665]
[1625182509852,0.1126724,2116.5,2116.1,0.12]
[1625182510300,0.1126724,2116.5,2116.0,13.75097665]
[1625182510399,0.1126724,2116.5,2116.0,21.75097665]
[1625182511440,0.1126724,2116.5,2116.1,7.08522]
[1625182511541,0.1126724,2116.5,2116.1,12.09522]
[1625182511893,0.1126724,2116.5,2116.2,0.04]
[1625182512544,0.1126724,2116.5,2116.2,7.12491]
[1625182512741,0.1126724,2116.5,2116.2,12.13491]
[1625182512945,0.1126724,2116.5,2116.3,0.08]
[1625182513197,0.1126724,2116.5,2116.2,5.01]
[1625182513395,0.1126724,2116.5,2116.1,17.99819]
[1625182513797,0.1126724,2116.5,2116.3,7.08467]
[1625182514868,0.01670512,2116.4,2116.3,7.08467]
[1625182515020,0.03341024,2116.4,2116.3,7.08467]
[1625182517463,0.1126724,2116.5,2116.4,7.2]
[1625182518071,0.1126724,2116.5,2116.3,12.17467]
[1625182518169,7.24e-05,2116.5,2116.3,20.17467]
[1625182518273,0.00811962,2117.4,2116.4,27.61591567]
[1625182518375,0.00811962,2117.4,2116.5,0.02796445]
[1625182518474,0.00811962,2117.4,2116.5,0.17796445]
[1625182518674,0.00811962,2117.4,2116.9,7.08253]
[1625182518874,0.00811962,2117.4,2116.9,12.09253]
[1625182519472,0.00811962,2117.4,2116.9,7.08253]
[1625182519623,0.00811962,2117.4,2116.8,12.9840903]
[1625182519802,0.00811962,2117.4,2116.8,9.44279]
[1625182519857,0.00811962,2117.4,2116.6,5.96244071]
[1625182520059,0.00811962,2117.4,2116.6,10.97244071]
[1625182520306,0.00811962,2117.4,2116.6,7.43109071]
[1625182520610,0.00811962,2117.4,2116.6,2.42109071]
[1625182521512,0.00811962,2117.4,2116.6,9.50447071]
[1625182521513,7.09158962,2117.4,2116.6,9.50447071]
[1625182521712,7.09158962,2117.4,2116.6,14.51447071]
[1625182522425,0.00811962,2117.4,2116.6,14.51447071]
[1625182522525,0.00811962,2117.4,2116.6,17.06059998]
[1625182523279,0.00811962,2117.4,2116.7,3.5412753]
[1625182523380,0.00811962,2117.4,2116.9,7.0825]
[1625182523530,0.00811962,2117.4,2116.9,12.0925]
[1625182523780,0.00811962,2117.4,2117.0,0.06]
[1625182524077,0.00811962,2117.4,2116.9,1.0557]
[1625182524334,0.00811962,2117.4,2116.9,6.0657]
[1625182524434,0.00811962,2117.4,2116.9,1.0557]
[1625182524532,0.00811962,2117.4,2116.9,6.0657]
[1625182524744,0.00811962,2117.4,2117.1,7.08188]
[1625182524989,0.00811962,2117.4,2117.1,12.24188]
[1625182525195,0.00811962,2117.4,2117.2,4.96721998]
[1625182525288,0.00811962,2117.4,2117.2,8.29521998]
[1625182525388,0.00811962,2117.4,2117.3,23.82]
[1625182525492,0.00811962,2117.4,2117.3,31.82]
[1625182525593,0.00811962,2117.4,2117.3,36.83]
[1625182525838,0.00811962,2117.4,2117.3,41.79721998]
[1625182526138,0.00811962,2117.4,2117.3,25.32701998]
[1625182527704,0.00811962,2117.4,2117.3,18.24721998]
[1625182529537,0.00811962,2117.4,2117.3,25.32701998]
[1625182529632,0.00811962,2117.4,2117.3,30.69931998]
[1625182531618,0.00811962,2117.4,2117.3,23.61951998]
[1625182532470,0.00811962,2117.4,2117.3,30.69931998]
[1625182532720,0.00755725,2117.9,2117.4,13.85]
[1625182532871,0.00755725,2117.9,2117.5,3.5395433]
[1625182532970,0.00755725,2117.9,2117.5,3.8695433]
[1625182533068,0.00755725,2117.9,2117.5,8.8795433]
[1625182533219,0.00755725,2117.9,2117.6,0.18]
[1625182533370,0.00755725,2117.9,2117.6,0.33]
[1625182533473,0.00755725,2117.9,2117.6,7.40929]
[1625182533571,0.00755725,2117.9,2117.6,12.41929]
[1625182533674,0.00755725,2117.9,2117.6,14.84038071]
[1625182533770,0.00755725,2117.9,2117.7,0.06]
[1625182534573,0.00755725,2117.9,2117.6,10.12721998]
[1625182535480,0.00755725,2117.9,2117.8,7.07857]
[1625182535630,0.00755725,2117.9,2117.8,15.83777]
[1625182535729,0.00755725,2117.9,2117.8,10.82777]
[1625182535829,0.00755725,2117.9,2117.8,15.83777]
[1625182537381,0.00755725,2117.9,2117.8,15.68777]
[1625182539935,0.00755725,2117.9,2117.8,15.89777]
[1625182540979,0.00755725,2117.9,2117.8,15.84777]
[1625182541530,0.00755725,2117.9,2117.8,15.78777]
[1625182543891,21.07868731,2118.5,2117.8,8.91852072]
[1625182543989,21.07868731,2118.5,2117.8,8.7592]
[1625182544088,21.07868731,2118.5,2117.7,9.43836]
[1625182544190,0.04,2118.4,2117.7,14.44836]
[1625182544787,21.07868731,2118.5,2117.7,14.44836]
[1625182544888,21.07868731,2118.5,2117.7,21.92385071]
[1625182545980,21.07868731,2118.5,2117.8,3.53935]
[1625182546086,21.07868731,2118.5,2117.8,8.54935]
[1625182546184,10.7012,2118.5,2117.9,0.15]
[1625182546334,10.7012,2118.5,2117.9,4.14048209]
[1625182546433,10.7012,2118.5,2118.0,0.04]
[1625182546636,10.7012,2118.5,2118.2,3.5384147]
[1625182546735,10.7012,2118.5,2118.2,8.0916147]
[1625182546916,6.87,2118.8,2118.3,0.15]
[1625182547064,6.87,2118.8,2118.4,3.53834]
[1625182547166,6.87,2118.8,2118.6,7.0766]
[1625182549862,6.87,2118.8,2118.6,12.0866]
[1625182549961,6.87,2118.8,2118.6,7.0766]
[1625182550113,6.87,2118.8,2118.6,12.0866]
[1625182550210,0.20681001,2118.9,2118.6,7.0766]
[1625182550463,0.20681001,2118.9,2118.5,14.4132821]
[1625182550659,0.20681001,2118.9,2118.5,19.4232821]
[1625182550860,0.20681001,2118.9,2118.5,27.4232821]
[1625182551210,0.20681001,2118.9,2118.5,14.4132821]
[1625182551665,0.20681001,2118.9,2118.4,2.42109071]
[1625182551964,0.20681001,2118.9,2118.3,0.15]
[1625182553366,7.28488001,2118.9,2118.3,0.15]
[1625182554123,7.28488001,2118.9,2118.3,0.05]
[1625182554222,7.28488001,2118.9,2118.0,3.5389038]
[1625182554424,0.08,2118.8,2118.0,8.5489038]
[1625182554622,7.15863,2118.8,2118.0,15.6272738]
[1625182554978,12.06443,2118.8,2118.0,7.07837]
[1625182555076,0.15,2118.7,2117.9,0.00713006]
[1625182555325,0.35,2118.7,2117.9,0.00713006]
[1625182556412,7.08056,2118.3,2117.9,0.00713006]
[1625182556616,10.50046,2118.3,2117.9,0.00713006]
[1625182556866,0.04,2118.2,2117.9,0.00713006]
[1625182557666,8.4299,2118.3,2117.9,0.00713006]
[1625182558473,7.08081,2118.1,2117.9,0.00713006]
[1625182559618,3.4199,2118.3,2117.9,0.00713006]
[1625182559769,3.15,2118.5,2117.9,0.00713006]
[1625182559867,52.0772,2118.7,2117.9,0.00713006]
[1625182560917,7.07997,2118.5,2117.9,0.00713006]
[1625182561067,10.63437,2118.5,2117.9,0.00713006]
[1625182561169,0.18,2118.4,2117.9,0.00713006]
[1625182561265,10.63437,2118.5,2117.9,0.00713006]
[1625182562474,3.5544,2118.5,2117.9,7.08662006]
[1625182562569,31.391,2118.7,2117.9,12.09662006]
[1625182562715,31.391,2118.7,2117.9,12.24662006]
[1625182563115,20.5356,2118.7,2117.9,12.24662006]
[1625182564419,27.61415,2118.7,2117.9,12.24662006]
[1625182564675,20.5356,2118.7,2117.9,5.16713006]
[1625182564962,20.5356,2118.7,2117.9,0.15713006]
[1625182566273,20.5356,2118.7,2117.9,7.23662006]
[1625182566374,20.5356,2118.7,2117.9,9.65771077]
[1625182566472,20.5356,2118.7,2117.9,14.66771077]
[1625182568345,20.5356,2118.7,2118.0,3.53879]
[1625182568445,20.5356,2118.7,2118.1,3.5387846]
[1625182568544,20.5356,2118.7,2118.1,18.1353246]
[1625182568645,20.5356,2118.7,2118.2,0.06]
[1625182568745,10.2693,2118.7,2118.2,0.06]
[1625182568844,10.2693,2118.7,2118.2,0.21]
[1625182568947,10.2693,2118.7,2118.4,3.538379]
[1625182569044,10.2693,2118.7,2118.4,8.548379]
[1625182569145,10.2693,2118.7,2118.4,8.698379]
[1625182569345,0.20681001,2118.9,2118.4,16.698379]
[1625182569827,0.20681001,2118.9,2118.6,7.07663]
[1625182570076,0.20681001,2118.9,2118.6,12.08663]
[1625182571232,0.20681001,2118.9,2118.4,18.765169]
[1625182571331,0.20681001,2118.9,2118.4,23.775169]
[1625182572620,0.20681001,2118.9,2118.5,7.07664]
[1625182572721,0.20681001,2118.9,2118.5,10.45554]
[1625182572824,0.20681001,2118.9,2118.5,15.46554]
[1625182576888,0.11254423,2118.8,2118.5,15.46554]
[1625182577041,0.11254423,2118.8,2118.5,5.01]
[1625182577238,0.11254423,2118.8,2118.4,13.01]
[1625182578748,0.11254423,2118.8,2118.5,4.9452]
[1625182578945,0.11254423,2118.8,2118.5,9.9552]
[1625182580398,0.11254423,2118.8,2118.5,17.03202]
[1625182580730,0.11254423,2118.8,2118.6,0.08]
[1625182580888,0.11254423,2118.8,2118.5,17.03202]
[1625182581344,0.11254423,2118.8,2118.5,9.8052]
[1625182581492,0.11254423,2118.8,2118.4,0.8813]
[1625182581595,0.11254423,2118.8,2118.2,2.42109071]
[1625182583451,0.11254423,2118.8,2118.2,9.49896071]
[1625182583550,0.11254423,2118.8,2118.2,14.50896071]
[1625182584558,12.18833423,2118.8,2118.2,2.42109071]
[1625182584706,0.2,2118.7,2117.9,0.00713006]
[1625182584807,0.35,2118.7,2117.9,0.00713006]
[1625182585241,0.08,2118.6,2117.9,0.00713006]
[1625182585544,2.78,2118.6,2117.9,0.00713006]
[1625182585696,11.88378,2118.3,2117.9,0.00713006]
[1625182586145,16.89378,2118.3,2117.9,0.00713006]
[1625182586294,0.08,2118.2,2117.9,0.00713006]
[1625182587504,7.08093,2118.1,2117.9,0.00713006]
[1625182587694,13.47,2118.0,2117.9,0.00713006]
[1625182588345,15.8,2117.9,2117.4,0.00755725]
[1625182588498,7.08196,2117.7,2117.4,0.00755725]
[1625182588595,11.49586,2117.7,2117.4,0.00755725]
[1625182589296,4.4139,2117.7,2117.4,0.00755725]
[1625182592098,7.0808,2118.1,2117.4,0.00755725]
[1625182592197,10.0504,2118.2,2117.4,8.00755725]
[1625182592305,10.0504,2118.2,2117.4,0.00755725]
[1625182592399,10.0504,2118.2,2117.4,13.01755725]
[1625182592549,17.13084,2118.2,2117.4,0.00755725]
[1625182592649,22.14084,2118.2,2117.4,0.00755725]
[1625182592900,17.13084,2118.2,2117.4,0.00755725]
[1625182593004,10.0504,2118.2,2117.4,0.00755725]
[1625182594004,10.0504,2118.2,2117.4,7.08798725]
[1625182594103,10.0504,2118.2,2117.4,12.09798725]
[1625182595157,10.0504,2118.2,2117.4,14.38802659]
[1625182595252,10.0504,2118.2,2117.5,0.08]
[1625182595355,10.0504,2118.2,2117.6,0.15]
[1625182596255,17.13041,2118.2,2117.6,0.15]
[1625182596582,21.99081,2118.2,2117.4,0.00755725]
[1625182596680,21.99081,2118.2,2117.4,5.01755725]
[1625182596776,0.04,2118.1,2117.4,0.00755725]
[1625182597225,0.12,2118.0,2117.4,0.00755725]
[1625182597331,7.08138,2117.8,2117.4,0.00755725]
[1625182599253,9.44346,2117.7,2117.4,0.00755725]
[1625182599814,9.44183,2118.0,2117.4,0.00755725]
[1625182599910,9.44183,2118.0,2117.4,4.28016766]
[1625182600008,14.45183,2118.0,2117.4,3.34345725]
[1625182601203,0.04,2117.9,2117.4,3.34345725]
[1625182601402,14.45183,2118.0,2117.4,3.34345725]
[1625182601609,5.01,2118.0,2117.4,3.34345725]
[1625182601806,15.0604,2118.2,2117.4,3.34345725]
[1625182603060,0.11259185,2118.1,2117.4,3.34345725]
[1625182603402,7.08163,2117.8,2117.4,3.34345725]
[1625182604357,0.04,2117.7,2117.4,3.34345725]
[1625182604457,5.01,2117.8,2117.4,3.34345725]
[1625182604558,14.45183,2118.0,2117.4,3.34345725]
[1625182604848,9.44183,2118.0,2117.4,3.34345725]
[1625182605248,14.45183,2118.0,2117.4,3.34345725]
[1625182605686,5.01,2118.0,2117.4,3.34345725]
[1625182605934,0.11259185,2118.1,2117.4,3.34345725]
[1625182606134,0.04,2118.0,2117.4,3.34345725]
[1625182607336,0.11259185,2118.1,2117.4,3.34345725]
[1625182607440,7.08176,2117.8,2117.4,3.34345725]
[1625182608682,7.19435978,2117.8,2117.4,3.34345725]
[1625182608933,0.06,2117.7,2117.4,3.34345725]
[1625182609181,7.08219,2117.6,2117.4,3.34345725]
[1625182609735,0.11259978,2117.8,2117.4,3.34345725]
[1625182610537,7.19422978,2117.8,2117.4,3.34345725]
[1625182613494,7.19422978,2117.8,2117.4,3.29345725]
[1625182613643,7.19422978,2117.8,2117.3,0.9635]
[1625182613744,7.19422978,2117.8,2117.1,0.15]
[1625182614050,7.0823,2117.5,2117.1,0.15]
[1625182614149,7.0823,2117.5,2116.9,12.10022962]
[1625182615409,7.0823,2117.5,2116.9,5.01811962]
[1625182615614,7.0823,2117.5,2116.9,0.00811962]
[1625182615710,7.0823,2117.5,2116.9,5.01811962]
[1625182615963,7.0823,2117.5,2116.9,0.00811962]
[1625182616061,7.0823,2117.5,2116.9,5.01811962]
[1625182616265,7.0823,2117.5,2116.9,0.00811962]
[1625182616361,7.0823,2117.5,2116.9,5.01811962]
[1625182616839,7.0823,2117.5,2116.9,0.00811962]
[1625182617492,7.0823,2117.5,2116.9,7.09033962]
[1625182617699,7.0823,2117.5,2116.9,12.10033962]
[1625182618198,7.0823,2117.5,2116.9,0.00811962]
[1625182624426,7.0823,2117.5,2116.9,7.09025962]
[1625182624532,7.0823,2117.5,2116.9,12.10025962]
[1625182625728,7.0323,2117.5,2116.9,12.10025962]
[1625182626233,7.0818,2117.6,2116.9,12.10025962]
[1625182626638,0.11259978,2117.8,2116.9,15.64095032]
[1625182626786,0.11259978,2117.8,2117.0,0.15]
[1625182627537,7.19390978,2117.8,2117.1,7.08138]
[1625182627741,7.19390978,2117.8,2117.1,7.23138]
[1625182628269,7.19390978,2117.8,2117.1,0.15]
[1625182628874,0.11259978,2117.8,2117.1,0.15]
[1625182628977,6.87713006,2118.4,2117.3,32.65]
[1625182629125,0.00713006,2118.4,2117.4,0.03641222]
[1625182629224,0.00713006,2118.4,2117.5,3.6]
[1625182629328,0.00713006,2118.4,2117.6,0.07135962]
[1625182629425,0.00713006,2118.4,2117.6,0.40135962]
[1625182629524,0.00713006,2118.4,2117.7,3.5391839]